Cogmind - Beta 14 @@@ ROGUE MODE // 2024.11.05 @ 14:36:47 Player: Guy Result: Destroyed by G-34 Mercenary with Small Laser Performance ------------- Evolutions (0) 0 Regions Visited (1) 200 Robots Destroyed (12) 60 Value Destroyed (241) 241 Prototype IDs (0) 0 Alien Tech Used (0) 0 Bonus (0) 0 TOTAL SCORE: 501 Bonus ------- None Cogmind --------- Core Integrity 0/250 Matter 300/300 Energy 100/100 System Corruption 0% Temperature Cool (15) Movement Core (1400) Ox27 Location -10/Materials Parts ------- > --- POWER (1) -------- (None) > --- PROPULSION (2) --- (None) > --- UTILITY (2) ------ Huge Storage Unit Signal Interpreter > --- WEAPON (2) ------- Light Assault Rifle Light Assault Rifle > --- INVENTORY (25) --- Light Ion Engine Sensor Array Signal Interpreter Seismic Detector Seismic Detector ECM Suite Peak State ------------ > --- POWER ------------ Light Ion Engine > --- PROPULSION ------- Wheel Wheel > --- UTILITY ---------- Huge Storage Unit Signal Interpreter > --- WEAPON ----------- Light Assault Rifle Light Assault Rifle > --- INVENTORY -------- Light Ion Engine Aluminum Leg Aluminum Leg Sensor Array Signal Interpreter Seismic Detector Seismic Detector ECM Suite Light Assault Rifle Light Assault Rifle [Rating: 8] Favorites ----------- Power Ion Engine Engine Ion Engine Propulsion Aluminum Leg Leg Aluminum Leg Wheel Wheel Flight Unit Flight Unit Utility Signal Interpreter Storage Huge Storage Unit Processor Signal Interpreter Weapon Light Assault Rifle Ballistic Gun Light Assault Rifle Build | -11 -10 ------- Run | Yrd Mat Slots Evolved . | . . Power . | . . Propulsion . | . . Utility . | . . Weapon . | . . Parts Attached 29 | 6 23 Power 8 | 1 7 Engine 8 | 1 7 Core . | . . Reactor . | . . Propulsion 10 | 2 8 Treads . | . . Leg 6 | 2 4 Wheel 2 | . 2 Hover . | . . Flight 2 | . 2 Utility 3 | 1 2 Device . | . . Storage 2 | 1 1 Processor 1 | . 1 Hackware . | . . Protection . | . . Artifact . | . . Weapon 8 | 2 6 Energy Gun . | . . Energy Cannon . | . . Ballistic Gun 8 | 2 6 Ballistic Cannon . | . . Launcher . | . . Special Weapon . | . . Impact Weapon . | . . Slashing Weapon . | . . Piercing Weapon . | . . Special Melee Weapon . | . . Unidentified Prototypes . | . . Parts Lost 9 | . 9 Power 2 | . 2 Propulsion 4 | . 4 Utility . | . . Weapon 3 | . 3 Highest Loss Streak 5 | . 5 To Critical Strikes . | . . Average Slot Usage (%) 95 | . 95 Engine 13 | . 13 Leg 11 | . 11 Wheel 5 | . 5 Flight 9 | . 9 Storage 14 | . 14 Processor 12 | . 12 Ballistic Gun 26 | . 26 Peak Build Rating 8 | 6 8 Average Rating 6 | 5 7 On Entrance 3 | . 6 Naked Turns . | . . Heaviest Build 87 | 12 87 Greatest Support 20 | 20 20 Greatest Overweight (x) 28 | 1 28 Average Overweight (x) 3 | . 3 Largest Inventory Capacity 25 | 8 25 Average Capacity 21 | 7 22 Most Carried 12 | 4 12 Average Carried 7 | 1 7 Final Capacity 25 | 8 25 Final Carried 6 | 4 6 Class Distribution -------------------- 50% | Mutant 49% | Scavenger-Mutant Dominant Class ---------------- Scavenger-Mutant | -10/Materials Resources | -11 -10 ----------- Run | Yrd Mat Matter Collected 576 | 265 311 Remotely . | . . Salvage Created 289 | . 289 Parts 19 | . 19 Haulers Intercepted . | . . Recyclers Shooed 2 | . 2 Parts Field Recycled . | . . Retrieved Matter . | . . Parts Self-Destructed . | . . Prevented . | . . Kills | -11 -10 ------- Run | Yrd Mat Combat Hostiles Destroyed 10 | . 10 Guns 10 | . 10 Classes Destroyed 3 | . 3 Watcher 2 | . 2 Swarmer 6 | . 6 Grunt 4 | . 4 Best Kill Streak 2 | . 2 Combat Bots Only 2 | . 2 Max Kills in Single Turn 1 | . 1 Gunslinging . | . . Exploded . | . . Melee . | . . Uniques/NPCs Destroyed . | . . Combat | -11 -10 -------- Run | Yrd Mat Hostile Shots Fired 155 | . 155 Missed 34 | . 34 Damage Taken 1166 | . 1166 Core 253 | . 253 Absorbed by Shields . | . . Core Remaining (%) 100 | 100 . Volleys Fired 60 | 3 57 Largest 2 | 2 2 Hottest 40 | 40 40 Shots Fired 107 | 6 101 Gun 107 | 6 101 Cannon . | . . Launcher . | . . Special . | . . Kinetic 107 | 6 101 Thermal . | . . Explosive . | . . Electromagnetic . | . . Robot Hit Streak 11 | . 11 Robot Miss Streak 5 | 4 5 Penetration Max . | . . Secondary Targets 2 | . 2 Max Gunslinging Chain 1 | . 1 Shots Hit Robots 60 | . 60 Core Hits 22 | . 22 Critical Kills 1 | . 1 Critical Parts Destroyed . | . . Critical Strikes 1 | . 1 Destroy 1 | . 1 Melee Attacks . | . . Impact . | . . Slashing . | . . Piercing . | . . Sneak Attacks . | . . Combat Hostiles . | . . Follow-up Attacks . | . . Damage Inflicted 545 | . 545 Guns 528 | . 528 Cannons . | . . Explosions . | . . Melee . | . . Ramming 17 | . 17 Kinetic 528 | . 528 Thermal . | . . Explosive . | . . Electromagnetic . | . . Impact . | . . Slashing . | . . Piercing . | . . Highest Corruption . | . . Average Corruption . | . . Corruption Purged . | . . Corruption Blocked . | . . Overload Shots . | . . Overflow Damage . | . . Projectiles . | . . Explosions . | . . Melee . | . . Knockbacks . | . . Impact . | . . Kinetic . | . . Secondary . | . . Self-Inflicted Damage 6 | . 6 Shots . | . . Rammed 1 | . 1 Targets Rammed 2 | . 2 Kicked 1 | . 1 Crushed . | . . Highest Temperature 18 | . 18 Average Temperature 8 | . 8 Received Heat Transfer 231 | . 231 Siege Activations . | . . Robots Corrupted . | . . Combat Hostiles . | . . Parts Fried . | . . Impact Corruptions . | . . Robots Melted . | . . Combat Hostiles . | . . Parts Melted . | . . Heat Transferred . | . . Parts Sabotaged . | . . Parts Stolen . | . . Parts Stripped . | . . Power Chain Reactions . | . . Alert | -11 -10 ------- Run | Yrd Mat Peak Influence 99 | . 99 Initial . | . . Average 33 | . 36 Maximum Alert Level . | . . Low Security (%) 100 | 100 100 Level 1 . | . . Level 2 . | . . Level 3 . | . . Level 4 . | . . Level 5 . | . . High Security . | . . Max Security . | . . Squads Dispatched 2 | . 2 Investigation 1 | . 1 Extermination . | . . Reinforcement 1 | . 1 Assault . | . . Garrison . | . . Intercept . | . . Searches Triggered . | . . Construction Impeded . | . . Haulers Reinforced . | . . Active Scanning Responses . | . . Cargo Convoy Interrupts . | . . Stealth | -11 -10 --------- Run | Yrd Mat Distress Signals 1 | . 1 Communications Jammed . | . . Distress Signals . | . . Times Spotted 20 | . 20 Peak Tracking Total 5 | . 5 Tactical Retreats . | . . Traps | -11 -10 ------- Run | Yrd Mat Traps Triggered 3 | . 3 Indirectly . | . . Trap Hack Attempts . | . . Triggered . | . . Disarmed . | . . Reprogrammed . | . . Reused . | . . Traps Extracted . | . . Installed . | . . Triggered . | . . Machines | -11 -10 ---------- Run | Yrd Mat Machines Disabled . | . . Max in Single Turn . | . . Machines Repaired . | . . Machines Dismantled . | . . Machines Sabotaged . | . . Overloaded Fab Kills . | . . Hacking | -11 -10 --------- Run | Yrd Mat Machines Accessed 3 | . 3 Terminals 2 | . 2 Fabricators . | . . Repair Stations . | . . Recycling Units 1 | . 1 Scanalyzers . | . . Garrison Access . | . . Total Hacks 10 | . 10 Successful 8 | . 8 Failed 2 | . 2 Catastrophic . | . . Database Lockouts . | . . Manual . | . . Terminals 6 | . 6 Fabricators . | . . Repair Stations . | . . Recycling Units 4 | . 4 Scanalyzers . | . . Garrison Access . | . . Terminal Hacks 4 | . 4 Record 2 | . 2 Branch Access Points 1 | . 1 Locate Traps 1 | . 1 Fabricator Hacks . | . . Repair Station Hacks . | . . Recycling Unit Hacks 4 | . 4 Recycle Component 4 | . 4 Scanalyzer . | . . Garrison Access Hacks . | . . Unauthorized Hacks . | . . Terminals . | . . Fabricators . | . . Repair Stations . | . . Recycling Units . | . . Scanalyzers . | . . Garrison Access . | . . Data Cores Recovered . | . . Used . | . . Hacking Detections 3 | . 3 Full Trace Events 1 | . 1 Feedback Events . | . . Feedback Blocked . | . . Robot Schematics Acquired . | . . Robots Built . | . . Authchips . | . . Time . | . . Total Robot Build Rating . | . . Part Schematics Acquired . | . . Parts Built . | . . Authchips . | . . Time . | . . Total Part Build Rating . | . . Parts Repaired . | . . Time . | . . Parts Recycled 4 | . 4 Recycled Matter . | . . Retrieved Matter . | . . Retrieved Components . | . . Parts Scanalyzed . | . . Part Schematics Acquired . | . . Parts Damaged . | . . Bothacking | -11 -10 ------------ Run | Yrd Mat Used RIF Installer . | . . Robots Hacked . | . . Non-combat . | . . Combat . | . . Robot Hacks Applied . | . . Relay Couplers Released . | . . Fabnet Peak Effective % . | . . Robots Rewired . | . . Allies Hacked . | . . Hacks Repelled . | . . Allies | -11 -10 -------- Run | Yrd Mat Total Allies . | . . Largest Group . | . . Highest-Rated Group . | . . Highest-Rated Ally . | . . Total Orders . | . . Ally Attacks . | . . Total Damage . | . . Kills . | . . Allies Corrupted . | . . Allies Melted . | . . Intel | -11 -10 ------- Run | Yrd Mat Robot Analysis Total . | . . Derelict Logs Recovered . | . . Drone Launches . | . . Drone Recoveries . | . . Exploration | -11 -10 ------------- Run | Yrd Mat Turns Passed 1733 | 138 1595 Spaces Moved 588 | 102 486 Core 10 | 7 3 Treads . | . . Legs 310 | 95 215 Wheels 207 | . 207 Hover . | . . Flight 61 | . 61 Fastest Speed 50 | 50 120 Average Speed 256 | 115 286 Slowest Speed 1720 | 120 1720 Overloaded Moves . | . . Propulsion Burnouts . | . . Robots Hopped . | . . Cave-ins Triggered . | . . Exploration Rate (%) 37 | 5 70 Regions Visited 1 Branch Regions . Pre-discovered Areas . | . . Known Exits Taken . | . . Unknown Exits Taken 1 | 1 . Scrap Searched . | . . Spaces Dug . | . . Terrain Destroyed . | . . Melee . | . . Projectile . | . . AOE . | . . Terrain Rammed . | . . Walls Destroyed . | . . Machines Disabled . | . . Actions | -11 -10 --------- Run | Yrd Mat Total 721 | 114 607 Wait 30 | . 30 Move 587 | 101 486 Hop . | . . Pick Up 9 | 4 5 Fast Attach 18 | 6 12 Attach 3 | . 3 Detach . | . . Swap 8 | . 8 Drop 4 | . 4 Fire 60 | 3 57 Melee . | . . Ram 1 | . 1 Kick 1 | . 1 Crush . | . . Escape Stasis . | . . Rewire . | . . Trap . | . . Miscellaneous . | . . Route ------- -11/Scrapyard -10/Materials (discovered 4 exits: [*Mat x2] / *Min x2) History --------- Turn | Location | Event 5 | -11/Scrapyard | Discovered new exit (range 16) 139 | -11/Scrapyard | Entered Materials 303 | -10/Materials | Build established: Mutant 500 | -10/Materials | Discovered new exit (range 5) 713 | -10/Materials | Identified exit to Mines 741 | -10/Materials | Core integrity fell below 50% 817 | -10/Materials | Discovered new exit (range 16) 1170 | -10/Materials | Lost 5 parts (1p2n2w) 1500 | -10/Materials | Build established: Scavenger-Mutant 1721 | -10/Materials | Core integrity fell below 20% 1734 | -10/Materials | Destroyed by G-34 Mercenary with Small Laser Last Messages --------------- Aluminum Leg destroyed. Lgt. Assault Rifle destroyed. K-01 Serf collects debris. S-10 Pest destroyed. K-01 Serf collects debris. Ion Engine destroyed. R-06 Scavenger collects Flight Unit. M-13 Machinist repairs S-10 Pest. Acquired Flight Unit. Lgt. Assault Rifle destroyed. S-10 Pest destroyed. Acquired 12 matter. Acquired Flight Unit. Acquired 11 matter. Acquired Lgt. Assault Rifle. R-06 Scavenger collects Lgt. Ion Engine. K-01 Serf collects debris. Acquired 39 matter. Flight Unit destroyed. Ion Engine destroyed. Map ----- +----------------------------------------------------+ | | | | | | | | | ?????????????????????????????????????????? | | ?????????????????????????????????????????? | | ?????????????????????????????????????????? | | ?????????????????????????????????????????? | | ???????????????????#???####??????????????? | | ???????????????????# ?? #??????????????? | | ???????????????????# """ #??????????????? | | ???????????????????# """ #??????????????? | | ???????????????????# """ #??????????????? | | ?????????????"?????# """ #??????????????? | | ??????????##"||????# """ #??????????????? | | ??????????#"" ???# #??????????????? | | ??????????# ???# #??????????????? | | ??????????# > ???# #??????????????? | | ??????????# ???# #??????????????? | | ??????????# ???# "Y" #??????????????? | | ???????????# ???# """ ########???????? | | ????????????# ???# # #???????? | | ????????????# #######+### !#???????? | | ????????????# # """ #???????? | | ????????????# kg # """ #???????? | | ????????????# @ g % # """ #???????? | | ????????????### ##### # #???????? | | ??????????????# #???# % ##+############# | | ??????????????# #???# # | | ??????????????# #???# + | | ??????????????# #???# # | | ??????????????# #???#######+######## # | | ??????????????# r####### !#??# # | | ??????????????# # # #### # | | ??????????????# #!! # + + | | ?????# ???????# #!! # """ """ #### # | | ????## ??????# g # # """ """ ######## | | ????# ###### # """ # """ """ # ## | | ????# T" u + """ # # "T" ## | | ????# " # """ # # """=## | | ????# ## # ########### =## | | ????##????# ^^ ^########T##########+#### | | ??????????# ^ ^^ | | ??????????# < ^^ | | ??????????# | | ??????????# ############################ | | ??????????# ?????????????????# # | | ??????????# ?????????????????# # | | ??????????# ??????????????????# # | | ??????????# ??????????????????# # | +----------------------------------------------------+ Best States ------------- Heat Dissipation 25 Energy Generation 10 Energy Capacity 250 Matter Stores 300 Matter Capacity 300 Sight Range 16 Terrain Scan Density 10 Evasion (%) 55 Item Schematics ----------------- None Robot Schematics ------------------ None Fabricated ------------ Nothing Alien Tech Used ----------------- None Achievements -------------- None Challenges ------------ None Game ------ Seed AssaultWarpBlade Manual? 0 Play Time 00:15:09 Cumulative 1.3 hours Start 2024.11.05 @ 14:23:02 End 2024.11.05 @ 14:36:47 Sessions 1 Manual Loads 0 Difficulty Rogue Special Mode None Game No. 4 Rogue 4 Adventurer 0 Explorer 0 Win Type - Total 0 Types 0/0/0/0/0/0/0/0/0 Lore% 1 Gallery% 3 Achievement% 4 Wizard Run 0 Options --------- Layout 1 ASCII 0 Keyboard 0 Movement Mouse Keybinds 0 Fullscreen 0 Font 42/SmallcapsGlow Map View 50x35 Zoom Use 0% Tactical HUD 0 Map Filters NONE Filters NONE Steam 1 RUN: e700ff7f-a2de-44d0-a890-7576b5a35add